bitfinex/quotes_ETHUSD_20250107
["timestamp","ask_amount","ask_price","bid_price","bid_amount"]
[1736276180621,0.0075,3425.7,3425.5,2.91925]
[1736276180985,6.60654685,3426.3,3425.5,2.91925]
[1736276180986,0.0075,3425.6,3425.5,2.91925]
[1736276181584,0.0075,3425.6,3425.2,0.58719068]
[1736276181585,0.0075,3425.5,3425.2,0.58719068]
[1736276181769,0.0075,3425.3,3425.2,3.50672068]
[1736276182215,0.0075,3425.3,3425.2,2.91953]
[1736276182382,0.0075,3425.5,3425.2,2.91953]
[1736276182585,0.0075,3425.3,3425.2,2.91953]
[1736276182855,0.0075,3425.3,3425.0,2.91968]
[1736276183102,0.0075,3425.5,3424.8,2.7880681]
[1736276183294,0.0075,3425.5,3424.7,0.59255017]
[1736276183496,0.0075,3425.1,3424.0,2.7880681]
[1736276183796,0.0075,3425.1,3424.1,0.40053106]
[1736276183797,0.04444064,3425.0,3424.1,0.40053106]
[1736276184094,0.0075,3424.9,3424.1,0.40053106]
[1736276184299,0.0075,3424.9,3424.0,2.7880681]
[1736276184509,0.0075,3425.0,3423.8,1.3119]
[1736276184707,6.60654685,3425.1,3424.1,2.92047]
[1736276184708,0.05194064,3424.8,3424.1,2.92047]
[1736276184910,0.0075,3424.8,3424.1,2.92047]
[1736276185068,6.61404685,3424.6,3424.1,2.92047]
[1736276185430,0.0075,3424.4,3423.9,2.9206]
[1736276185569,1.1139,3424.2,3423.8,2.9207]
[1736276185765,6.60654685,3424.1,3423.3,0.58261785]
[1736276186083,6.60654685,3424.1,3422.9,2.92148]
[1736276186084,7.72044685,3423.8,3422.9,2.92148]
[1736276186270,7.72044685,3423.8,3423.2,2.9212]
[1736276186628,7.72044685,3423.8,3422.9,0.292148]
[1736276186629,6.60654685,3423.8,3423.6,2.9209]
[1736276186830,0.04011497,3423.7,3423.5,2.9209]
[1736276187032,0.0075,3423.6,3423.5,2.9209]
[1736276187670,0.0075,3424.2,3423.1,2.7880681]
[1736276188005,0.0075,3424.0,3423.4,2.92099]
[1736276188374,0.0075,3424.0,3423.4,3.50674448]
[1736276188570,0.0075,3423.8,3423.4,3.50674448]
[1736276188907,0.0075,3423.8,3423.5,2.92098]
[1736276189312,0.0075,3424.2,3423.4,0.58575448]
[1736276189469,6.60654685,3424.3,3422.8,2.7880681]
[1736276189470,1.0412,3424.1,3422.8,2.7880681]
[1736276189673,1.0412,3423.9,3422.8,2.7880681]
[1736276190105,0.0075,3423.6,3422.6,0.57681122]
[1736276190379,0.0075,3422.8,3422.5,2.92181]
[1736276190714,0.0075,3422.6,3422.5,2.92181]
[1736276191038,0.0075,3422.6,3422.2,2.7880681]
[1736276191039,0.0075,3422.6,3421.9,2.7880681]
[1736276191327,0.0075,3422.5,3422.0,2.92226]
[1736276191488,6.60654685,3422.4,3421.7,3.24]
[1736276191694,0.0075,3422.3,3421.7,3.24]
[1736276192096,0.0075,3422.3,3421.9,0.58452698]
[1736276192276,0.0075,3422.3,3422.2,2.92209]
[1736276192477,1.0335,3423.3,3422.3,0.5575]
[1736276192678,1.0335,3423.7,3422.9,2.7880681]
[1736276192873,3.95439,3423.7,3422.4,3.0]
[1736276193077,0.0075,3423.4,3422.3,5.7099881]
[1736276193397,0.0075,3423.4,3422.5,2.92179]
[1736276193599,0.0075,3423.4,3422.6,5.7098081]
[1736276193792,0.0075,3423.4,3422.6,2.92174]
[1736276193989,0.0075,3423.4,3422.3,3.48985691]
[1736276193990,0.0075,3423.4,3422.4,2.9219]
[1736276194603,0.0075,3423.4,3422.3,2.7880681]
[1736276194808,1.0335,3423.5,3423.0,2.92139]
[1736276195178,0.0075,3423.4,3422.8,2.92156]
[1736276195917,0.0075,3423.4,3422.6,2.7880681]
[1736276196116,0.0075,3423.4,3422.9,2.92146]
[1736276196624,0.58365018,3424.4,3422.6,2.7880681]
[1736276196625,6.60654685,3423.9,3423.2,2.7880681]
[1736276197119,0.0075,3423.6,3423.1,0.24]
[1736276197442,0.0075,3423.6,3422.9,3.51449834]
[1736276197443,0.0075,3423.4,3422.9,0.59304834]
[1736276197581,6.60654685,3423.3,3422.3,2.7880681]
[1736276197933,1.0514,3423.5,3422.3,2.7880681]
[1736276197934,6.60654685,3423.4,3423.0,2.92133]
[1736276198127,6.60654685,3423.4,3422.8,2.92158]
[1736276198128,0.0075,3423.3,3422.8,2.92158]
[1736276198930,0.0075,3423.3,3422.6,2.7880681]
[1736276199074,0.0075,3423.1,3422.4,5.92191]
[1736276199275,0.0075,3422.9,3422.4,5.92191]
[1736276199527,0.0075,3422.9,3422.5,2.92183]
[1736276199820,6.60654685,3423.1,3422.5,0.592183]
[1736276200019,6.60654685,3423.1,3422.8,2.9215]
[1736276200415,6.60654685,3423.1,3422.7,2.92166]
[1736276200416,0.0075,3423.0,3422.7,2.92166]
[1736276201417,0.0075,3423.0,3422.4,3.34557985]
[1736276201617,0.0075,3422.8,3422.7,2.92166]
[1736276202376,0.0075,3422.8,3422.1,2.92215]
[1736276202678,0.0075,3422.6,3422.1,2.92215]
[1736276202823,6.61404685,3422.6,3422.1,2.92215]
[1736276203020,6.61404685,3422.6,3421.8,1.034]
[1736276203227,0.03775005,3422.5,3422.2,2.92208]
[1736276203425,0.03775005,3422.5,3421.8,1.86751328]
[1736276203426,0.0075,3422.4,3422.3,2.92201]
[1736276203659,0.0075,3422.4,3421.9,3.34557985]
[1736276203865,0.04525005,3422.4,3422.1,2.92218]
[1736276204032,0.0075,3422.5,3421.8,1.034]
[1736276204238,0.0075,3422.3,3421.9,2.92233]
[1736276204564,0.0075,3422.3,3421.7,0.57192313]
[1736276204773,0.0075,3422.1,3421.6,3.0914928]
[1736276204929,0.0075,3421.9,3421.6,0.1689028]
[1736276205126,0.0075,3421.7,3421.6,0.1614028]
[1736276205536,0.04499249,3421.7,3421.6,0.1614028]
[1736276205737,1.0709,3421.7,3421.6,0.1614028]
[1736276205950,1.10839249,3421.7,3421.6,0.1614028]
[1736276206949,1.10839249,3421.7,3421.6,0.1539028]
[1736276207678,7.71493934,3421.7,3421.6,0.1539028]
[1736276208878,7.71493934,3421.7,3421.0,0.03673067]
[1736276208879,6.60654685,3421.6,3421.0,0.03673067]
[1736276209049,6.60654685,3421.6,3421.0,1.013]
[1736276209254,0.04326352,3421.5,3421.3,2.92286]
[1736276209445,0.04326352,3421.5,3420.9,0.58847264]
[1736276209635,0.04326352,3421.5,3421.2,2.92292]
[1736276209843,0.0075,3421.5,3421.2,2.92292]
[1736276210042,0.0075,3421.5,3421.0,2.92305]
[1736276210264,0.0075,3421.3,3421.0,2.92305]
[1736276210669,0.0075,3421.3,3420.9,0.58847264]
[1736276210857,0.0075,3421.4,3420.9,0.58847264]
[1736276211054,0.0075,3421.1,3421.0,1.0234]
[1736276211253,0.0075,3421.1,3421.0,2.92312]
[1736276211575,6.60654685,3421.5,3421.0,2.92312]
[1736276211576,0.0075,3421.4,3421.3,2.92286]
[1736276211975,1.0695,3422.3,3421.8,2.92243]
[1736276212177,1.0695,3422.3,3421.3,4.01086]
[1736276212178,1.0695,3422.3,3421.4,0.02922477]
[1736276212389,1.0695,3422.3,3421.6,2.9226]
[1736276212613,1.0695,3422.3,3421.5,0.65172248]
[1736276212896,0.0075,3422.0,3421.0,0.24]
[1736276213599,6.61404685,3421.8,3421.0,0.24]
[1736276213773,6.60654685,3421.8,3421.4,3.34557985]
[1736276213951,6.61404685,3421.8,3421.7,2.92252]
[1736276214453,6.60654685,3421.8,3421.7,2.93002]
[1736276214759,6.60654685,3421.8,3421.7,2.92252]
[1736276214961,6.61404685,3421.8,3421.7,2.92252]
[1736276215667,6.60654685,3421.8,3421.7,2.92252]
[1736276215868,6.60654685,3421.8,3421.7,4.01218088]
[1736276216073,6.60654685,3421.8,3421.7,4.01968088]
[1736276216474,6.61404685,3421.8,3421.7,4.01968088]
[1736276216699,0.0075,3421.8,3421.7,4.01968088]
[1736276217274,0.0075,3421.8,3421.7,2.92252]
[1736276217473,0.0075,3421.7,3421.4,3.34557985]
[1736276217789,0.0075,3421.7,3421.2,2.92294]
[1736276217790,0.0075,3422.0,3421.5,2.92265]
[1736276217984,0.0075,3422.0,3421.2,0.24]
[1736276218252,0.0075,3421.8,3421.7,2.92244]
[1736276218362,0.0075,3421.8,3421.7,4.61564198]
[1736276218568,6.60654685,3422.6,3421.9,2.9223]
[1736276218795,0.0409379,3422.5,3421.9,2.9223]
[1736276218976,0.0409379,3422.5,3421.6,2.92254]
[1736276219460,0.0409379,3422.5,3421.4,1.0601]
[1736276219662,0.0409379,3422.5,3421.7,2.92248]
[1736276219961,0.0334379,3422.4,3421.7,2.92248]
[1736276220157,0.0075,3422.3,3421.8,2.92238]
[1736276220617,0.0334379,3422.2,3421.8,2.92238]
[1736276220765,6.61404685,3422.1,3421.8,2.92238]
[1736276221072,0.0075,3421.9,3421.8,2.92238]
[1736276221270,0.0075,3421.9,3421.6,2.9226]
[1736276221470,1.0327,3421.9,3421.6,2.9226]
[1736276221675,1.0327,3421.9,3421.4,3.34557985]
[1736276221898,0.0075,3421.7,3421.6,2.92254]
[1736276222105,0.0075,3421.7,3421.6,3.84163399]
[1736276222322,1.0252,3422.4,3421.8,2.92243]
[1736276222795,9.265,3423.1,3422.2,2.92208]
[1736276223009,9.265,3423.1,3422.3,2.92199]
[1736276223294,0.0075,3423.0,3422.3,2.92199]
[1736276223465,0.0075,3423.0,3422.0,2.92218]
[1736276223671,0.0075,3422.8,3422.0,2.92218]
[1736276223973,1.07834535,3422.9,3422.3,2.92194]
[1736276224174,1.0445,3422.9,3422.1,0.24]
[1736276224389,0.0075,3422.7,3422.1,0.24]
[1736276224591,0.0075,3422.3,3421.8,2.92243]
[1736276224991,0.0075,3421.9,3421.6,2.92259]
[1736276225187,0.0075,3421.9,3421.8,2.92243]
[1736276225188,1.0846,3421.9,3421.8,2.92243]
[1736276225390,0.0075,3421.9,3421.8,2.92243]
[1736276225573,0.0075,3421.9,3421.8,3.238673]
[1736276225792,0.0075,3421.9,3421.8,3.246173]
[1736276225793,0.04163043,3421.9,3421.8,3.246173]
[1736276225994,0.04163043,3421.9,3421.8,10.69435285]
[1736276226202,0.0075,3422.5,3422.3,2.92193]
[1736276226709,0.0075,3422.5,3422.0,2.92224]
[1736276226908,0.0075,3422.5,3422.0,2.92221]
[1736276227212,0.0075,3422.3,3422.1,2.92217]
[1736276227510,0.04149469,3422.2,3422.1,2.92217]
[1736276227879,0.0075,3422.2,3422.1,2.92217]
[1736276231227,3.0,3423.3,3421.4,3.34557985]
[1736276231228,0.0075,3422.3,3421.4,3.34557985]
[1736276231397,0.0075,3421.9,3421.0,3.34557985]
[1736276231605,0.0075,3421.7,3421.3,2.92279]
[1736276232121,0.0075,3421.5,3421.4,2.92277]
[1736276232704,0.0075,3421.7,3421.2,2.92287]
[1736276232924,0.0075,3421.7,3421.3,2.92279]
[1736276233083,0.0075,3421.7,3420.8,2.92321]
[1736276233084,0.0075,3421.3,3420.8,2.92321]
[1736276233305,1.1163336,3421.6,3420.8,2.92324]
[1736276233306,0.0075,3421.1,3420.8,2.92324]
[1736276233508,0.0075,3421.1,3420.9,2.92315]
[1736276234038,0.0075,3421.1,3421.0,0.59794718]
[1736276234236,1.0505,3421.1,3421.0,0.59044718]
[1736276234750,0.0075,3421.1,3421.0,3.51356718]
[1736276237693,8.25,3421.2,3421.0,3.51356718]
[1736276237694,0.0075,3421.4,3421.0,2.92312]
[1736276237892,0.0075,3421.4,3421.3,2.92286]
[1736276239202,0.0075,3421.4,3421.0,2.92305]
[1736276239341,8.2575,3421.2,3420.9,0.59639413]
[1736276240046,8.2575,3421.2,3420.9,3.51959413]
[1736276241094,8.25,3421.2,3421.0,2.9231]
[1736276241258,8.25,3421.2,3421.1,2.92303]
[1736276241446,8.25,3421.2,3421.1,6.07434598]
[1736276241962,1.0584,3422.5,3421.2,0.0075]
[1736276242150,8.25,3422.4,3422.2,2.92207]
[1736276242675,8.2575,3422.4,3422.3,2.92201]
[1736276242974,8.25,3422.4,3422.3,2.92201]
[1736276243555,8.2575,3422.4,3422.3,2.92201]
[1736276244376,0.0075,3422.3,3422.1,2.92215]
[1736276244747,0.0075,3422.3,3422.2,2.92209]
[1736276247395,1.1046,3423.0,3422.4,2.92192]
[1736276247680,9.3546,3423.0,3422.8,2.92156]
[1736276248072,0.0075,3422.9,3422.8,2.92156]
[1736276249247,0.0075,3422.9,3422.5,2.92178]
[1736276249669,0.0075,3422.7,3422.5,2.92178]
[1736276250059,0.0075,3422.7,3422.6,2.92175]
[1736276250267,9.3546,3423.0,3422.6,2.92175]
[1736276250482,0.03974225,3422.9,3422.7,2.92162]
[1736276250679,0.0075,3422.9,3422.7,2.92162]
[1736276252260,0.0075,3422.9,3422.3,2.92201]
[1736276252261,8.2575,3422.9,3422.3,2.92201]
[1736276252593,0.03974225,3422.8,3422.7,2.92162]
[1736276252895,0.0075,3422.8,3422.7,2.92162]
[1736276253392,0.03974225,3422.8,3422.7,2.92162]
[1736276254396,0.0075,3422.7,3422.1,4.129714]
[1736276254596,0.0075,3422.5,3422.1,4.129774]
[1736276254792,0.0075,3422.5,3422.1,2.92217]
[1736276255096,0.0075,3422.3,3422.0,1.207604]
[1736276255696,0.0075,3422.1,3422.0,1.207604]
[1736276255899,0.03993912,3422.1,3421.9,2.92234]
[1736276256296,0.03993912,3422.1,3422.0,2.92226]
[1736276256614,0.03993912,3422.1,3422.0,3.84878407]
[1736276256761,0.03243912,3422.1,3422.0,41.84878407]
[1736276256961,8.25,3422.2,3422.1,2.92218]
[1736276257185,8.2575,3422.2,3422.1,2.92218]
[1736276257870,8.2575,3422.2,3421.5,1.78606999]
[1736276257871,0.0075,3422.1,3421.5,1.78606999]
[1736276258064,0.0075,3422.1,3421.9,1.207604]
[1736276258259,0.0075,3422.0,3421.9,1.207604]
[1736276258966,8.2575,3422.0,3421.9,1.207604]
[1736276259306,8.25,3422.0,3421.9,2.92235]
[1736276259466,8.25,3422.0,3421.9,5.7835394]
[1736276259867,8.2575,3422.0,3421.9,5.7835394]
[1736276260467,8.2575,3422.0,3421.9,2.92235]
[1736276262666,8.2575,3422.0,3421.9,37.92235]
[1736276264603,0.0075,3422.0,3421.9,37.92235]
[1736276265384,0.0075,3422.0,3421.9,40.72082644]
[1736276268340,1.0908,3422.8,3421.9,40.80597644]
[1736276268613,8.25,3423.0,3422.7,2.92165]
[1736276268999,0.03242558,3422.9,3422.7,2.92165]
[1736276270011,0.03242558,3422.9,3422.5,2.92179]
[1736276270198,8.25,3423.0,3422.5,37.92179]
[1736276270401,0.0075,3422.9,3422.1,2.92218]
[1736276270587,0.0075,3422.9,3422.3,5.72043644]
[1736276270792,0.0075,3422.9,3422.3,2.79847644]
[1736276271111,0.0075,3422.9,3422.8,2.92158]
[1736276272613,1.0682,3423.4,3423.1,2.92126]
[1736276273111,0.0075,3423.2,3422.9,2.92146]
[1736276274018,0.0075,3423.3,3422.9,2.92146]
[1736276274317,0.03268355,3423.2,3422.9,2.92146]
[1736276274491,0.0075,3423.1,3423.0,2.92141]
[1736276274712,1.0682,3423.4,3423.0,3.213551]
[1736276274913,4.12051455,3424.3,3423.0,3.213551]
[1736276274914,1.1086,3423.7,3423.2,2.79847644]
[1736276275317,0.0075,3423.5,3423.4,2.92103]
[1736276275715,0.0075,3423.6,3423.4,2.92103]
[1736276275915,0.04017676,3423.5,3423.4,2.92103]
[1736276276330,0.03267676,3423.5,3423.4,2.92103]
[1736276276639,0.03267676,3423.5,3423.4,3.78510964]
[1736276276942,0.03267676,3423.5,3423.4,38.78510964]
[1736276277236,0.0075,3423.5,3423.4,38.78510964]
[1736276279839,0.0075,3423.5,3423.4,3.78510964]
[1736276280246,0.0398816,3423.5,3423.4,2.92103]
[1736276281241,0.0075,3423.4,3423.2,2.9212]
[1736276281403,0.0075,3423.4,3422.9,1.207604]
[1736276281909,0.0075,3423.2,3422.9,1.207604]
[1736276282141,0.0075,3423.2,3422.9,4.129094]
[1736276282447,1.0371,3423.6,3422.9,2.92149]
[1736276282615,0.0075,3423.5,3422.9,2.92149]
[1736276282820,0.0398816,3423.5,3422.9,2.92149]
[1736276283212,0.0075,3423.1,3422.6,0.5956362]
[1736276283412,1.0234,3422.8,3422.3,1.207604]
[1736276283627,0.0075,3422.5,3422.3,1.207604]
[1736276283845,0.0075,3422.5,3422.3,4.129584]
[1736276284214,0.0398816,3422.4,3422.3,4.129584]
[1736276284410,0.0398816,3422.4,3422.3,2.92198]
[1736276284611,0.0398816,3422.4,3422.0,2.79847644]
[1736276284821,0.0398816,3422.4,3421.8,1.207604]
[1736276284822,0.0075,3422.3,3421.8,4.129954]
[1736276285048,0.0075,3422.3,3421.9,2.92231]
[1736276285444,0.0075,3422.5,3422.0,2.92225]
[1736276286230,0.0075,3422.5,3422.3,2.92193]
[1736276286556,0.03952179,3422.4,3422.3,2.92193]
[1736276286932,0.03952179,3422.4,3422.3,5.72040644]
[1736276287341,0.03952179,3422.4,3422.3,6.09806327]
[1736276287541,0.0075,3422.4,3422.3,6.09806327]
[1736276287948,0.0075,3422.4,3422.3,41.09806327]
[1736276288738,0.0075,3422.4,3422.3,42.19546327]
[1736276290140,0.0075,3422.4,3422.3,43.40306727]
[1736276292621,0.0075,3422.4,3422.3,43.03291044]
[1736276292847,0.0075,3422.4,3422.3,41.93551044]
[1736276294457,0.0075,3422.4,3422.3,6.93551044]
[1736276294664,0.0075,3422.4,3422.3,5.72790644]
[1736276294839,0.0392844,3422.4,3422.3,5.72790644]
[1736276295041,0.0075,3422.4,3422.3,5.72790644]
[1736276295634,0.0075,3422.4,3422.3,8.58909584]
[1736276295942,0.0075,3422.4,3422.3,12.61329584]
[1736276296326,0.0075,3422.4,3422.3,47.61329584]
[1736276296976,0.0075,3422.4,3422.3,47.62079584]
[1736276297126,8.25,3423.6,3423.0,2.79847644]
[1736276297323,0.03168936,3423.5,3423.2,2.92117]
[1736276297962,0.03168936,3423.5,3423.3,35.0]
[1736276298182,0.03168936,3423.5,3423.0,2.79847644]
[1736276298362,8.25,3423.6,3423.3,2.92114]
[1736276298555,0.03188621,3423.4,3423.3,2.92114]
[1736276298888,8.25,3423.6,3423.3,2.92114]
[1736276299473,0.0075,3423.5,3423.1,37.92126]
[1736276300300,0.0075,3423.3,3422.7,1.22301116]
[1736276300576,0.0075,3423.1,3422.7,1.22301116]
[1736276300734,8.2575,3422.9,3422.7,1.22301116]
[1736276300938,0.03946087,3422.8,3422.7,1.22301116]
[1736276301242,0.0075,3422.7,3422.5,2.92179]
[1736276301649,8.2575,3422.7,3422.3,1.22301116]
[1736276301852,0.0075,3422.5,3422.3,1.22301116]
[1736276302157,0.03156717,3422.4,3422.3,1.22301116]
[1736276302333,8.25,3422.7,3422.3,1.22301116]
[1736276302334,0.0075,3422.6,3422.3,1.22301116]
[1736276302535,0.0075,3422.4,3422.3,1.22301116]
[1736276302836,0.0075,3422.4,3422.2,2.92203]
[1736276303047,0.03906717,3422.4,3422.3,2.92201]
[1736276303243,8.25,3422.7,3422.3,2.92201]
[1736276303452,0.0075,3422.6,3422.4,2.92189]
[1736276303650,0.03906717,3422.6,3422.4,2.92189]
[1736276303850,0.0075,3422.6,3422.5,2.92184]
[1736276304138,0.0075,3422.6,3422.2,0.6561095]
[1736276304339,0.0075,3422.6,3422.4,2.92189]
[1736276305370,0.0075,3422.6,3422.2,0.0075]
[1736276305575,0.0075,3422.6,3422.5,2.92184]
[1736276306552,0.0075,3422.8,3422.6,2.92174]
[1736276306735,0.03897212,3422.7,3422.6,2.92174]
[1736276306937,0.03897212,3422.7,3422.6,3.49376164]
[1736276308149,0.03897212,3422.7,3422.6,2.92174]
[1736276308983,0.0075,3422.6,3422.5,2.92184]
[1736276309434,0.0075,3422.8,3422.5,0.0075]
[1736276309635,0.0075,3422.8,3422.6,2.92168]
[1736276309873,0.0075,3422.8,3422.7,2.92167]
[1736276311078,1.0712,3423.6,3422.8,0.0075]
[1736276311396,1.0712,3423.6,3423.3,2.92107]
[1736276311768,1.0712,3423.6,3423.1,2.92129]
[1736276311966,1.0712,3423.6,3422.9,2.92146]
[1736276312220,0.03908076,3423.5,3422.8,3.0]
[1736276312381,0.03908076,3423.5,3422.8,5.92154]
[1736276312588,0.03908076,3423.5,3422.8,2.92154]
[1736276313324,0.0075,3423.3,3422.6,2.92171]
[1736276313725,0.0075,3423.1,3422.6,2.92171]
[1736276314264,0.0075,3422.9,3422.6,2.92171]
[1736276314890,0.0075,3422.7,3422.6,2.92171]
[1736276315087,0.0075,3422.7,3422.4,4.14489116]
[1736276315426,0.0075,3422.5,3422.4,1.22301116]
[1736276315607,8.2575,3422.5,3422.4,1.22301116]
[1736276315926,8.2575,3422.5,3422.2,4.75657675]
[1736276315927,8.28916901,3422.5,3422.3,1.22301116]
[1736276317067,8.28916901,3422.5,3422.3,4.14498116]
[1736276317263,8.28916901,3422.5,3422.3,2.92197]
[1736276318362,8.28916901,3422.5,3422.4,2.92192]
[1736276319089,8.28916901,3422.5,3422.2,2.92207]
[1736276320089,8.28916901,3422.5,3422.3,2.92201]
[1736276321474,8.2575,3422.4,3422.3,2.92201]
[1736276322210,8.28916901,3422.4,3422.3,2.92201]
[1736276323378,8.28166901,3422.4,3422.3,10.22258914]
[1736276324113,8.25,3422.4,3422.3,11.4456003]
[1736276324317,8.2575,3422.4,3422.3,11.4456003]
[1736276324514,8.28772961,3422.4,3422.3,11.4456003]
[1736276325317,8.28772961,3422.4,3422.3,13.79964427]
[1736276325630,8.25,3423.1,3423.0,2.92141]
[1736276326014,8.28792658,3423.1,3423.0,2.92141]
[1736276329613,0.03792658,3423.1,3423.0,2.92141]
[1736276330704,0.0075,3423.0,3422.8,4.14660149]
[1736276330912,0.0075,3423.0,3422.9,2.92149]
[1736276331094,0.0075,3423.0,3422.8,1.22507149]
[1736276331302,1.0439,3422.9,3422.8,1.22507149]
[1736276331619,1.0439,3422.9,3422.8,1.21757149]
[1736276332810,0.0075,3422.8,3422.7,2.92167]
[1736276333600,8.2575,3422.8,3422.7,2.92167]
[1736276335299,8.25,3422.8,3422.7,6.43774855]
[1736276335620,0.0075,3422.7,3422.5,2.92182]
[1736276335844,8.2575,3422.7,3422.5,2.92182]
[1736276338043,8.2575,3422.7,3422.6,2.92175]
[1736276339244,8.2575,3422.7,3422.6,2.92925]
[1736276339398,0.0075,3423.0,3422.6,2.92925]
[1736276339603,0.0075,3423.0,3422.9,2.92147]
[1736276342313,0.03806921,3423.0,3422.9,2.92147]
[1736276345434,8.28806921,3423.0,3422.9,2.92147]
[1736276349156,8.28806921,3423.0,3422.7,1.21782822]
[1736276349356,1.1062,3422.8,3422.7,1.21782822]
[1736276349700,1.13670129,3422.8,3422.7,1.21782822]
[1736276350215,1.13670129,3422.8,3422.5,2.92181]
[1736276350599,1.1062,3422.8,3422.5,2.92181]
[1736276351404,1.1062,3422.8,3422.3,3.02196]
[1736276351603,1.1062,3422.8,3422.3,0.1]
[1736276352058,0.0075,3422.6,3422.3,0.1]
[1736276352835,0.0075,3422.4,3422.3,0.1]
[1736276353209,0.0075,3422.7,3422.3,0.1]
[1736276353559,0.03781789,3422.4,3422.3,0.1]
[1736276354470,8.28781789,3422.4,3422.3,0.1]
[1736276354940,8.28781789,3422.4,3422.3,3.02201]
[1736276356049,8.28781789,3422.4,3422.3,0.1]
[1736276357567,8.28781789,3422.4,3422.3,4.10351]
[1736276357771,8.2575,3422.4,3422.3,5.09342664]
[1736276357927,8.25,3422.4,3422.3,5.09342664]
[1736276358136,8.28024996,3422.4,3422.3,5.09342664]
[1736276358325,3.89736996,3422.4,3422.3,8.09342664]
[1736276358508,1.20018455,3423.4,3422.3,8.10092664]
[1736276358844,1.20018455,3423.4,3423.3,2.92115]
[1736276359148,0.95,3423.7,3423.3,2.92115]
[1736276359646,0.95,3423.7,3423.4,2.92107]
[1736276359852,2.15018455,3423.8,3423.2,1.089]
[1736276360145,0.95,3423.8,3423.5,0.0075]
[1736276360347,0.95,3423.8,3423.5,2.92843]
[1736276360513,1.20018455,3424.0,3423.7,2.79847644]
[1736276360908,0.0075,3423.9,3423.5,0.68834064]
[1736276361120,0.0075,3423.9,3423.5,3.60925064]
[1736276361744,0.0075,3424.0,3423.7,2.79847644]
[1736276361947,1.20018455,3424.4,3423.9,2.79847644]
[1736276362107,1.20018455,3424.4,3423.7,35.0]
[1736276362312,0.0075,3424.2,3423.2,6.83467644]
[1736276362542,0.0075,3424.2,3423.4,1.22496905]
[1736276362949,0.0075,3424.2,3423.5,35.0]
[1736276363112,0.0075,3424.2,3423.4,1.22496905]
[1736276363513,0.0075,3424.2,3423.3,0.0075]
[1736276364348,0.95,3423.9,3423.0,39.14634905]
[1736276364553,0.0075,3423.8,3423.0,4.14634905]
[1736276364758,0.0075,3423.6,3423.0,4.14634905]
[1736276365943,0.0075,3423.6,3423.0,2.92138]
[1736276366426,0.0075,3423.6,3422.8,2.92154]
[1736276366624,1.0081,3423.7,3422.7,36.22496905]
[1736276366625,0.9575,3423.4,3422.7,36.22496905]
[1736276366887,0.9575,3423.4,3422.7,1.22496905]
[1736276367224,0.9575,3423.2,3422.7,1.22496905]
[1736276367456,0.0075,3423.0,3422.7,1.22496905]
[1736276368651,0.0075,3423.0,3422.3,1.31746905]
[1736276368652,0.9575,3423.0,3422.3,1.31746905]
[1736276369046,0.0075,3422.8,3422.3,1.31746905]
[1736276369428,0.0075,3422.6,3422.3,1.31746905]
[1736276370190,0.0075,3422.6,3422.3,0.1]
[1736276371846,0.0075,3422.6,3422.3,0.0925]
[1736276372033,0.0075,3422.4,3422.3,0.0925]
[1736276372430,0.03742102,3422.4,3422.3,0.0925]
[1736276372692,0.0075,3422.6,3422.3,0.0925]
[1736276372833,0.0075,3422.6,3422.4,0.0075]
[1736276373186,0.02978516,3422.5,3422.4,0.0075]
[1736276373326,0.03728516,3422.5,3422.4,0.0075]
[1736276375869,0.0075,3422.4,3422.3,0.0925]
[1736276376593,0.0075,3422.6,3422.3,0.0925]
[1736276377268,0.0075,3422.6,3422.4,0.0075]
[1736276377434,1.0357,3423.0,3422.4,0.0075]
[1736276377774,1.0357,3423.0,3422.4,3.51139564]
[1736276377978,0.0075,3422.8,3422.4,3.51139564]
[1736276378479,0.0075,3422.6,3422.4,3.51139564]
[1736276379037,0.0075,3422.9,3422.4,3.51139564]
[1736276379262,0.0075,3422.9,3422.4,2.92935]
[1736276379471,0.02889556,3422.8,3422.5,0.0075]
[1736276379868,0.0075,3422.7,3422.5,0.0075]
[1736276380067,0.03639556,3422.7,3422.5,0.0075]
[1736276380254,0.0075,3422.7,3422.5,0.0075]
[1736276380454,0.0075,3422.9,3422.7,0.0075]
[1736276381371,0.0075,3423.1,3422.7,0.0075]
[1736276382657,0.95,3423.2,3422.9,0.0075]
[1736276382980,1.0496,3423.6,3423.1,0.0075]
[1736276382981,1.9996,3423.6,3423.1,0.0075]
[1736276383794,1.9996,3423.6,3422.9,0.0075]
[1736276384080,0.0075,3423.5,3422.9,0.0075]
[1736276385214,0.0075,3423.5,3422.7,3.0075]
[1736276385421,0.0075,3423.5,3423.0,0.0075]
[1736276387014,0.0075,3423.5,3423.0,1.054]
[1736276387211,0.0075,3423.5,3423.0,0.0075]
[1736276387774,0.0075,3423.5,3422.8,2.9215]
[1736276388016,0.0075,3423.3,3422.9,0.0075]
[1736276388213,0.0075,3423.3,3422.6,1.63531235]
[1736276388414,0.0075,3423.1,3422.6,1.63531235]
[1736276388617,0.0075,3423.1,3422.8,0.0075]
[1736276388985,0.0075,3423.3,3422.7,0.0075]
[1736276389678,0.0075,3423.5,3422.7,0.0075]
[1736276389926,2.92849,3423.5,3422.7,0.0075]
[1736276390324,0.0075,3423.1,3422.7,0.0075]
[1736276390923,0.0075,3422.9,3422.4,36.0717]
[1736276391123,0.0075,3422.9,3422.5,0.0075]
[1736276394925,0.0075,3422.9,3422.6,35.0]
[1736276395107,0.0075,3422.7,3422.6,35.0075]
[1736276395607,0.0075,3422.9,3422.7,0.0075]
[1736276396450,0.0075,3422.9,3422.4,0.0075]
[1736276396594,0.0075,3422.9,3422.6,0.0075]
[1736276396797,0.0075,3422.7,3422.6,0.0075]
[1736276397194,0.03699328,3422.7,3422.6,0.0075]
[1736276397395,0.0075,3422.9,3422.6,0.0075]
[1736276398954,0.0075,3422.9,3422.4,0.0075]